[Event "Live Chess"]
[Site "Chess.com"]
[Date "2024.06.02"]
[Round "-"]
[White "Trendle"]
[Black "karina55"]
[Result "1-0"]
[WhiteElo "2635"]
[BlackElo "1852"]
[TimeControl "300"]
[EndTime "3:33:16 PDT"]
[Termination "Trendle won on time"]

1. e4 {[%clk 0:04:57.2]} 1... e5 {[%clk 0:04:58.8]} 2. Nf3 {[%clk 0:04:54.7]}
2... Nc6 {[%clk 0:04:57.6]} 3. Bb5 {[%clk 0:04:54.1]} 3... a6 {[%clk 0:04:55.8]}
4. Ba4 {[%clk 0:04:52.6]} 4... d6 {[%clk 0:04:54.5]} 5. O-O {[%clk 0:04:48.3]}
5... Bd7 {[%clk 0:04:51.4]} 6. c4 {[%clk 0:04:43]} 6... Nge7 {[%clk 0:04:44.6]}
7. Nc3 {[%clk 0:04:39.2]} 7... g6 {[%clk 0:04:28.9]} 8. d4 {[%clk 0:04:25.7]}
8... exd4 {[%clk 0:04:14.9]} 9. Nd5 {[%clk 0:04:16.8]} 9... Bg7 {[%clk
0:04:04.7]} 10. Bg5 {[%clk 0:04:15.1]} 10... Qc8 {[%clk 0:03:24.2]} 11. Nf6+
{[%clk 0:04:02.7]} 11... Kf8 {[%clk 0:03:04.8]} 12. Nxd4 {[%clk 0:03:44.8]}
12... h6 {[%clk 0:02:54.4]} 13. Nxd7+ {[%clk 0:03:43.7]} 13... Qxd7 {[%clk
0:02:46]} 14. Bxe7+ {[%clk 0:03:41.1]} 14... Kxe7 {[%clk 0:02:39.3]} 15. Nxc6+
{[%clk 0:03:38.2]} 15... bxc6 {[%clk 0:02:37.5]} 16. e5 {[%clk 0:03:32.8]} 16...
Bxe5 {[%clk 0:02:24.7]} 17. Qf3 {[%clk 0:03:15.1]} 17... Rab8 {[%clk 0:02:09.6]}
18. Rfe1 {[%clk 0:03:03.5]} 18... Kf8 {[%clk 0:02:01.1]} 19. Bb3 {[%clk
0:02:35.2]} 19... c5 {[%clk 0:01:41.8]} 20. Rad1 {[%clk 0:02:33.6]} 20... Qf5
{[%clk 0:01:37.7]} 21. Qc6 {[%clk 0:02:28.8]} 21... Kg7 {[%clk 0:00:55.9]} 22.
Qxc7 {[%clk 0:02:25.4]} 22... Rhc8 {[%clk 0:00:44.1]} 23. Qa7 {[%clk 0:02:23.7]}
23... Ra8 {[%clk 0:00:42]} 24. Qb7 {[%clk 0:02:22.7]} 24... Rcb8 {[%clk
0:00:38.9]} 25. Qd5 {[%clk 0:02:20.3]} 25... Bxb2 {[%clk 0:00:32.2]} 26. Qxd6
{[%clk 0:02:14.8]} 26... Bd4 {[%clk 0:00:27.3]} 27. Qg3 {[%clk 0:02:05.7]} 27...
Re8 {[%clk 0:00:25.3]} 28. Ba4 {[%clk 0:02:03.1]} 28... Rxe1+ {[%clk 0:00:21.2]}
29. Rxe1 {[%clk 0:02:03]} 29... Rb8 {[%clk 0:00:19.2]} 30. Bb3 {[%clk
0:01:57.7]} 30... Rd8 {[%clk 0:00:07.9]} 31. h3 {[%clk 0:01:54.5]} 31... h5
{[%clk 0:00:05.6]} 32. Rf1 {[%clk 0:01:49.7]} 32... Re8 {[%clk 0:00:03.7]} 33.
Bd1 {[%clk 0:01:46.1]} 1-0

[Event "Live Chess"]
[Site "Chess.com"]
[Date "2024.06.02"]
[Round "-"]
[White "resipsa6"]
[Black "f4nomore"]
[Result "1/2-1/2"]
[WhiteElo "2015"]
[BlackElo "1254"]
[TimeControl "300"]
[EndTime "3:33:26 PDT"]
[Termination "Game drawn by agreement"]

1. Nf3 {[%clk 0:04:58.9]} 1... g6 {[%clk 0:04:59.7]} 2. g3 {[%clk 0:04:57.8]}
2... Bg7 {[%clk 0:04:59.6]} 3. Bg2 {[%clk 0:04:57]} 3... d6 {[%clk 0:04:57.1]}
4. O-O {[%clk 0:04:56.9]} 4... Nf6 {[%clk 0:04:55.2]} 5. d4 {[%clk 0:04:56.4]}
5... O-O {[%clk 0:04:54]} 6. c3 {[%clk 0:04:56]} 6... Nbd7 {[%clk 0:04:52.6]} 7.
Bg5 {[%clk 0:04:55.6]} 7... c5 {[%clk 0:04:50.6]} 8. Qd2 {[%clk 0:04:55]} 8...
cxd4 {[%clk 0:04:48.6]} 9. cxd4 {[%clk 0:04:54.9]} 9... Rb8 {[%clk 0:04:45.5]}
10. Bh6 {[%clk 0:04:54.3]} 10... b6 {[%clk 0:04:44.3]} 11. Bxg7 {[%clk
0:04:53.7]} 11... Kxg7 {[%clk 0:04:43.5]} 12. Nc3 {[%clk 0:04:53.2]} 12... Bb7
{[%clk 0:04:41]} 13. e3 {[%clk 0:04:52.1]} 13... e5 {[%clk 0:04:38.1]} 14. dxe5
{[%clk 0:04:51.4]} 14... dxe5 {[%clk 0:04:33.9]} 15. Rad1 {[%clk 0:04:46.8]}
15... Bxf3 {[%clk 0:04:19.6]} 16. Bxf3 {[%clk 0:04:42.3]} 16... Nc5 {[%clk
0:04:17.7]} 17. Qxd8 {[%clk 0:04:41]} 17... Rbxd8 {[%clk 0:04:15.3]} 18. Nd5
{[%clk 0:04:37.7]} 18... e4 {[%clk 0:04:10]} 19. Nxf6 {[%clk 0:04:29.2]} 19...
Rxd1 {[%clk 0:04:07.4]} 20. Nh5+ {[%clk 0:04:16.8]} 20... gxh5 {[%clk
0:03:59.6]} 21. Bxd1 {[%clk 0:04:14.8]} 21... Rd8 {[%clk 0:03:53.1]} 22. Bxh5
{[%clk 0:04:13.2]} 22... Rd2 {[%clk 0:03:51.2]} 23. Rb1 {[%clk 0:04:06.9]} 23...
Nd3 {[%clk 0:03:46.7]} 24. f4 {[%clk 0:03:59.4]} 24... exf3 {[%clk 0:03:40]} 25.
Bxf3 {[%clk 0:03:57.6]} 25... Nxb2 {[%clk 0:03:29.4]} 26. a3 {[%clk 0:03:34.3]}
26... Nc4 {[%clk 0:03:24.4]} 27. Rb3 {[%clk 0:03:23.3]} 27... Ra2 {[%clk
0:03:19]} 28. Bd5 {[%clk 0:03:17.5]} 28... Nxa3 {[%clk 0:03:12.4]} 29. Rc3
{[%clk 0:03:16.6]} 29... Ra1+ {[%clk 0:03:08.7]} 30. Kg2 {[%clk 0:03:14.9]}
30... Nb5 {[%clk 0:03:05]} 31. Rc8 {[%clk 0:03:12]} 31... Rb1 {[%clk 0:02:58.7]}
32. Ra8 {[%clk 0:03:08.9]} 32... Rb2+ {[%clk 0:02:55.6]} 33. Kh3 {[%clk
0:03:07.4]} 33... Nc7 {[%clk 0:02:48.8]} 34. Rd8 {[%clk 0:03:05.8]} 34... Nxd5
{[%clk 0:02:46.6]} 35. Rxd5 {[%clk 0:03:05.7]} 35... a5 {[%clk 0:02:45.2]} 36.
Kg4 {[%clk 0:03:00.3]} 1/2-1/2

[Event "Live Chess"]
[Site "Chess.com"]
[Date "2024.06.02"]
[Round "-"]
[White "Cimon"]
[Black "Brooms1989"]
[Result "1-0"]
[WhiteElo "1840"]
[BlackElo "1238"]
[TimeControl "300"]
[EndTime "3:33:27 PDT"]
[Termination "Cimon won by resignation"]

1. e4 {[%clk 0:04:57.8]} 1... e5 {[%clk 0:04:59.4]} 2. Nf3 {[%clk 0:04:56.1]}
2... Nc6 {[%clk 0:04:58.9]} 3. Bb5 {[%clk 0:04:54.5]} 3... a6 {[%clk 0:04:57.5]}
4. Ba4 {[%clk 0:04:53.4]} 4... Nf6 {[%clk 0:04:56.3]} 5. O-O {[%clk 0:04:52.2]}
5... Nxe4 {[%clk 0:04:55.5]} 6. Re1 {[%clk 0:04:45.2]} 6... Nc5 {[%clk
0:04:53.3]} 7. Bxc6 {[%clk 0:04:39.2]} 7... dxc6 {[%clk 0:04:53.2]} 8. Nxe5
{[%clk 0:04:37.2]} 8... Ne6 {[%clk 0:04:51]} 9. c3 {[%clk 0:04:32.8]} 9... Bd6
{[%clk 0:04:49.1]} 10. d4 {[%clk 0:04:31.3]} 10... O-O {[%clk 0:04:47.5]} 11.
Qf3 {[%clk 0:04:21.6]} 11... f6 {[%clk 0:04:39.4]} 12. Nd3 {[%clk 0:04:18.6]}
12... Ng5 {[%clk 0:04:23.8]} 13. Qe2 {[%clk 0:04:06]} 13... Bd7 {[%clk
0:04:09.5]} 14. h4 {[%clk 0:04:02.6]} 14... Re8 {[%clk 0:04:08.3]} 15. Qd1
{[%clk 0:03:57.2]} 15... Ne4 {[%clk 0:03:46.9]} 16. Nd2 {[%clk 0:03:51.5]} 16...
Nxd2 {[%clk 0:03:45]} 17. Bxd2 {[%clk 0:03:47.9]} 17... f5 {[%clk 0:03:42.7]}
18. Bg5 {[%clk 0:03:36]} 18... Be7 {[%clk 0:03:27.4]} 19. Rxe7 {[%clk
0:03:17.4]} 19... Rxe7 {[%clk 0:03:27.3]} 20. Qb3+ {[%clk 0:03:10.1]} 20... Be6
{[%clk 0:03:12.7]} 21. Qxb7 {[%clk 0:03:06.2]} 21... h6 {[%clk 0:03:05.6]} 22.
Bxe7 {[%clk 0:03:04.4]} 22... Qxe7 {[%clk 0:03:05]} 23. Qxa8+ {[%clk 0:03:03.4]}
23... Qf8 {[%clk 0:03:04.8]} 24. Qxf8+ {[%clk 0:03:01.6]} 24... Kxf8 {[%clk
0:03:04.7]} 25. Ne5 {[%clk 0:02:59.3]} 1-0

[Event "Live Chess"]
[Site "Chess.com"]
[Date "2024.06.02"]
[Round "-"]
[White "Ferrarifan27"]
[Black "slava_ukr"]
[Result "0-1"]
[WhiteElo "2147"]
[BlackElo "2418"]
[TimeControl "300"]
[EndTime "3:33:33 PDT"]
[Termination "slava_ukr won by resignation"]

1. e4 {[%clk 0:04:57.8]} 1... d5 {[%clk 0:04:59.3]} 2. exd5 {[%clk 0:04:56.7]}
2... Qxd5 {[%clk 0:04:59]} 3. Nc3 {[%clk 0:04:55.4]} 3... Qd6 {[%clk 0:04:58]}
4. Nf3 {[%clk 0:04:53.4]} 4... c6 {[%clk 0:04:57.2]} 5. d4 {[%clk 0:04:52.6]}
5... Nf6 {[%clk 0:04:56.7]} 6. Bd3 {[%clk 0:04:49.1]} 6... Bg4 {[%clk
0:04:55.7]} 7. Be3 {[%clk 0:04:46]} 7... e6 {[%clk 0:04:54]} 8. h3 {[%clk
0:04:44.9]} 8... Bh5 {[%clk 0:04:52.8]} 9. O-O {[%clk 0:04:43.4]} 9... Nbd7
{[%clk 0:04:51.4]} 10. Re1 {[%clk 0:04:42.2]} 10... Be7 {[%clk 0:04:50.3]} 11.
Qe2 {[%clk 0:04:38.9]} 11... O-O {[%clk 0:04:48.8]} 12. Rad1 {[%clk 0:04:38.1]}
12... Qb4 {[%clk 0:04:43.5]} 13. Ne4 {[%clk 0:04:23.5]} 13... Nxe4 {[%clk
0:04:32.8]} 14. Bxe4 {[%clk 0:04:21.5]} 14... Nf6 {[%clk 0:04:31.8]} 15. Bd3
{[%clk 0:04:20.5]} 15... Nd5 {[%clk 0:04:30.4]} 16. c3 {[%clk 0:04:18.8]} 16...
Qd6 {[%clk 0:04:29]} 17. Be4 {[%clk 0:04:11.5]} 17... Nf4 {[%clk 0:04:22.7]} 18.
Bxf4 {[%clk 0:04:09.6]} 18... Qxf4 {[%clk 0:04:21.5]} 19. Qe3 {[%clk 0:04:07.4]}
19... Qc7 {[%clk 0:04:10.5]} 20. Rd2 {[%clk 0:04:00.9]} 20... Bd6 {[%clk
0:04:09]} 21. Qg5 {[%clk 0:03:56]} 21... Bxf3 {[%clk 0:04:02.7]} 22. Bxf3 {[%clk
0:03:54.7]} 22... Bf4 {[%clk 0:04:01.2]} 23. Qh5 {[%clk 0:03:37.8]} 23... Bxd2
{[%clk 0:03:59.9]} 24. Re4 {[%clk 0:03:36.9]} 24... g6 {[%clk 0:03:55.5]} 25.
Qh4 {[%clk 0:03:33.7]} 25... Qd8 {[%clk 0:03:53.3]} 26. Qg3 {[%clk 0:03:30.5]}
26... Bh6 {[%clk 0:03:42.7]} 27. Rh4 {[%clk 0:03:26.7]} 27... Bg7 {[%clk
0:03:41.7]} 28. Re4 {[%clk 0:03:24.2]} 28... Qe7 {[%clk 0:03:34.9]} 29. h4
{[%clk 0:03:23.1]} 29... Rad8 {[%clk 0:03:28.9]} 30. h5 {[%clk 0:03:20.8]} 30...
Rd5 {[%clk 0:03:21.5]} 31. hxg6 {[%clk 0:03:19.3]} 31... hxg6 {[%clk 0:03:20.6]}
32. Rh4 {[%clk 0:03:08.4]} 32... Qg5 {[%clk 0:03:15.6]} 33. Bxd5 {[%clk
0:03:05.2]} 33... Qxg3 {[%clk 0:03:12.6]} 34. fxg3 {[%clk 0:03:04.1]} 34... cxd5
{[%clk 0:03:11.7]} 35. Rf4 {[%clk 0:03:00.9]} 35... b5 {[%clk 0:03:10.2]} 36. a3
{[%clk 0:02:57.5]} 36... a5 {[%clk 0:03:08.9]} 37. Rf2 {[%clk 0:02:55.6]} 37...
b4 {[%clk 0:03:06.9]} 38. axb4 {[%clk 0:02:54.1]} 38... axb4 {[%clk 0:03:06.1]}
39. Rf1 {[%clk 0:02:53.1]} 39... Rc8 {[%clk 0:03:03.3]} 40. Rf3 {[%clk
0:02:50.6]} 40... bxc3 {[%clk 0:03:02.2]} 41. bxc3 {[%clk 0:02:46.6]} 41... Rxc3
{[%clk 0:03:00.9]} 42. Rxc3 {[%clk 0:02:43.5]} 42... Bxd4+ {[%clk 0:02:59.7]}
43. Kf1 {[%clk 0:02:42.4]} 43... Bxc3 {[%clk 0:02:58.9]} 0-1

[Event "Live Chess"]
[Site "Chess.com"]
[Date "2024.06.02"]
[Round "-"]
[White "willc-h99"]
[Black "80Times"]
[Result "1-0"]
[WhiteElo "2617"]
[BlackElo "1905"]
[TimeControl "300"]
[EndTime "3:33:44 PDT"]
[Termination "willc-h99 won by resignation"]

1. d4 {[%clk 0:04:59.1]} 1... e6 {[%clk 0:04:57.9]} 2. Nf3 {[%clk 0:04:57.5]}
2... f5 {[%clk 0:04:57.1]} 3. Bg5 {[%clk 0:04:55.7]} 3... Nf6 {[%clk 0:04:55.5]}
4. e3 {[%clk 0:04:54.5]} 4... Be7 {[%clk 0:04:54.2]} 5. Nbd2 {[%clk 0:04:52.5]}
5... O-O {[%clk 0:04:52.9]} 6. Bd3 {[%clk 0:04:49.8]} 6... d5 {[%clk 0:04:45.5]}
7. Ne5 {[%clk 0:04:48.6]} 7... Nbd7 {[%clk 0:04:44.3]} 8. Ndf3 {[%clk
0:04:45.5]} 8... Ne4 {[%clk 0:04:40.8]} 9. Bxe7 {[%clk 0:04:43.4]} 9... Qxe7
{[%clk 0:04:39.8]} 10. Nxd7 {[%clk 0:04:38.6]} 10... Bxd7 {[%clk 0:04:37]} 11.
Ne5 {[%clk 0:04:32.8]} 11... c5 {[%clk 0:04:23.8]} 12. O-O {[%clk 0:04:29.6]}
12... c4 {[%clk 0:04:21.6]} 13. Bxe4 {[%clk 0:04:28.5]} 13... fxe4 {[%clk
0:04:20.7]} 14. b3 {[%clk 0:04:25.4]} 14... c3 {[%clk 0:03:58.5]} 15. a4 {[%clk
0:04:23.7]} 15... b5 {[%clk 0:03:55.4]} 16. f4 {[%clk 0:04:09.4]} 16... b4
{[%clk 0:03:52.7]} 17. Kh1 {[%clk 0:03:55.3]} 17... a5 {[%clk 0:03:50.3]} 18. g4
{[%clk 0:03:45.8]} 18... Bc8 {[%clk 0:03:44.3]} 19. Qe1 {[%clk 0:03:39.8]} 19...
Ba6 {[%clk 0:03:42.3]} 20. Rg1 {[%clk 0:03:38.5]} 20... g5 {[%clk 0:03:34.7]}
21. Qg3 {[%clk 0:03:25.7]} 21... Kh8 {[%clk 0:03:03.1]} 22. Rg2 {[%clk
0:03:17.3]} 22... Rg8 {[%clk 0:02:53.9]} 23. Rf2 {[%clk 0:03:13.4]} 23... Raf8
{[%clk 0:02:49.1]} 24. Rg1 {[%clk 0:03:10.1]} 24... Qg7 {[%clk 0:02:36.2]} 25.
fxg5 {[%clk 0:02:57]} 25... Rxf2 {[%clk 0:02:26.5]} 26. Qxf2 {[%clk 0:02:56.9]}
26... Qxg5 {[%clk 0:02:24.6]} 27. Nf7+ {[%clk 0:02:55.6]} 1-0

[Event "Live Chess"]
[Site "Chess.com"]
[Date "2024.06.02"]
[Round "-"]
[White "r0ad_t0-gm"]
[Black "dhairyapandyauk"]
[Result "1-0"]
[WhiteElo "2261"]
[BlackElo "1670"]
[TimeControl "300"]
[EndTime "3:33:48 PDT"]
[Termination "r0ad_t0-gm won by resignation"]

1. Nf3 {[%clk 0:04:58.9]} 1... Nf6 {[%clk 0:04:58]} 2. g3 {[%clk 0:04:58.3]}
2... g6 {[%clk 0:04:56.8]} 3. b3 {[%clk 0:04:56.9]} 3... Bg7 {[%clk 0:04:56.4]}
4. Bb2 {[%clk 0:04:56.8]} 4... O-O {[%clk 0:04:55.8]} 5. Bg2 {[%clk 0:04:56.1]}
5... b6 {[%clk 0:04:55.3]} 6. O-O {[%clk 0:04:53.1]} 6... Bb7 {[%clk 0:04:54.5]}
7. d4 {[%clk 0:04:52.4]} 7... d5 {[%clk 0:04:53.8]} 8. c4 {[%clk 0:04:51.4]}
8... Nbd7 {[%clk 0:04:52.6]} 9. cxd5 {[%clk 0:04:48.9]} 9... Nxd5 {[%clk
0:04:51.4]} 10. Nbd2 {[%clk 0:04:46.3]} 10... c5 {[%clk 0:04:49.8]} 11. e4
{[%clk 0:04:43.8]} 11... N5f6 {[%clk 0:04:48.9]} 12. e5 {[%clk 0:04:40]} 12...
Nd5 {[%clk 0:04:47.7]} 13. e6 {[%clk 0:04:39.5]} 13... fxe6 {[%clk 0:04:46]} 14.
Nc4 {[%clk 0:04:35.9]} 14... cxd4 {[%clk 0:04:40.8]} 15. Bxd4 {[%clk 0:04:34]}
15... e5 {[%clk 0:04:37.9]} 16. Nfxe5 {[%clk 0:04:28.8]} 16... Nxe5 {[%clk
0:04:37.1]} 17. Bxe5 {[%clk 0:04:27.1]} 17... e6 {[%clk 0:04:25.6]} 18. Bxg7
{[%clk 0:04:23.4]} 18... Kxg7 {[%clk 0:04:24.8]} 19. Qd4+ {[%clk 0:04:18.9]}
19... Qf6 {[%clk 0:04:23.5]} 20. Qxf6+ {[%clk 0:04:15.4]} 20... Rxf6 {[%clk
0:04:22.3]} 21. Rad1 {[%clk 0:04:02.5]} 21... Rd8 {[%clk 0:04:18.7]} 22. Rfe1
{[%clk 0:03:55.7]} 22... Ba6 {[%clk 0:04:16.6]} 23. h4 {[%clk 0:03:51]} 23...
Rdf8 {[%clk 0:04:11.6]} 24. Rd2 {[%clk 0:03:45.1]} 24... b5 {[%clk 0:03:56.5]}
25. Ne3 {[%clk 0:03:39.6]} 25... Nc3 {[%clk 0:03:52.5]} 26. Ng4 {[%clk
0:03:34.2]} 26... Rf5 {[%clk 0:03:48.8]} 27. Rxe6 {[%clk 0:03:26.6]} 27... b4
{[%clk 0:03:47.5]} 28. Rxa6 {[%clk 0:03:22.9]} 28... h5 {[%clk 0:03:44.3]} 29.
Rxa7+ {[%clk 0:03:21.6]} 29... Kh8 {[%clk 0:03:42.1]} 30. Ne3 {[%clk 0:03:19.1]}
30... Re5 {[%clk 0:03:40.3]} 31. Rdd7 {[%clk 0:03:16.1]} 31... Ne2+ {[%clk
0:03:36]} 32. Kh2 {[%clk 0:03:14.1]} 32... Rxf2 {[%clk 0:03:32.7]} 33. Rd8+
{[%clk 0:03:05.9]} 1-0

[Event "Live Chess"]
[Site "Chess.com"]
[Date "2024.06.02"]
[Round "-"]
[White "Kyrylo7770"]
[Black "vincents82"]
[Result "1/2-1/2"]
[WhiteElo "1632"]
[BlackElo "2001"]
[TimeControl "300"]
[EndTime "3:33:54 PDT"]
[Termination "Game drawn by repetition"]

1. d4 {[%clk 0:04:58.3]} 1... d5 {[%clk 0:04:58.7]} 2. Bg5 {[%clk 0:04:57.6]}
2... f6 {[%clk 0:04:52.5]} 3. Bh4 {[%clk 0:04:56.7]} 3... c5 {[%clk 0:04:51.7]}
4. e3 {[%clk 0:04:55.8]} 4... Nc6 {[%clk 0:04:47.5]} 5. Bd3 {[%clk 0:04:54]}
5... e6 {[%clk 0:04:46.5]} 6. Qh5+ {[%clk 0:04:53.5]} 6... Kd7 {[%clk
0:04:43.7]} 7. Bb5 {[%clk 0:04:51.6]} 7... g6 {[%clk 0:04:40.6]} 8. Bxc6+ {[%clk
0:04:46.9]} 8... bxc6 {[%clk 0:04:38.3]} 9. Qd1 {[%clk 0:04:44.1]} 9... Bd6
{[%clk 0:04:35.8]} 10. c3 {[%clk 0:04:43]} 10... Ne7 {[%clk 0:04:34.2]} 11. Nf3
{[%clk 0:04:42.4]} 11... Nf5 {[%clk 0:04:32.9]} 12. O-O {[%clk 0:04:37.8]} 12...
Nxh4 {[%clk 0:04:25.1]} 13. Nxh4 {[%clk 0:04:36.6]} 13... g5 {[%clk 0:04:24.3]}
14. Nf3 {[%clk 0:04:34.3]} 14... h5 {[%clk 0:04:23.6]} 15. dxc5 {[%clk
0:04:30.2]} 15... Bxc5 {[%clk 0:04:21.2]} 16. b4 {[%clk 0:04:29.3]} 16... Bd6
{[%clk 0:04:20.1]} 17. Nd4 {[%clk 0:04:28.6]} 17... Ba6 {[%clk 0:04:17.8]} 18.
Qa4 {[%clk 0:04:26.9]} 18... Qb6 {[%clk 0:04:14.5]} 19. Re1 {[%clk 0:04:23.8]}
19... Bb5 {[%clk 0:04:12.7]} 20. Qc2 {[%clk 0:04:22.4]} 20... h4 {[%clk
0:04:05.5]} 21. Qg6 {[%clk 0:04:19.9]} 21... Rag8 {[%clk 0:03:58.9]} 22. Qf7+
{[%clk 0:04:19]} 22... Be7 {[%clk 0:03:58.4]} 23. Qxe6+ {[%clk 0:04:18]} 23...
Ke8 {[%clk 0:03:57.9]} 24. Qc8+ {[%clk 0:04:15.6]} 24... Kf7 {[%clk 0:03:56.7]}
25. Qe6+ {[%clk 0:04:09.8]} 25... Ke8 {[%clk 0:03:55.4]} 26. Qc8+ {[%clk
0:04:08.8]} 26... Kf7 {[%clk 0:03:54.6]} 27. Qe6+ {[%clk 0:04:08.3]} 27... Ke8
{[%clk 0:03:53.9]} 1/2-1/2

[Event "Live Chess"]
[Site "Chess.com"]
[Date "2024.06.02"]
[Round "-"]
[White "BishopofWells"]
[Black "Bodhanas"]
[Result "0-1"]
[WhiteElo "1551"]
[BlackElo "2276"]
[TimeControl "300"]
[EndTime "3:33:55 PDT"]
[Termination "Bodhanas won by resignation"]

1. d4 {[%clk 0:04:55.8]} 1... d5 {[%clk 0:04:56.8]} 2. c4 {[%clk 0:04:54.5]}
2... e6 {[%clk 0:04:56]} 3. Nc3 {[%clk 0:04:53.5]} 3... Nf6 {[%clk 0:04:54.4]}
4. Bg5 {[%clk 0:04:52.4]} 4... Be7 {[%clk 0:04:53.2]} 5. Nf3 {[%clk 0:04:51.3]}
5... O-O {[%clk 0:04:51.7]} 6. e3 {[%clk 0:04:50.6]} 6... c6 {[%clk 0:04:50.6]}
7. c5 {[%clk 0:04:46.5]} 7... Nbd7 {[%clk 0:04:49.4]} 8. Bd3 {[%clk 0:04:45.3]}
8... h6 {[%clk 0:04:47]} 9. Bh4 {[%clk 0:04:43.4]} 9... b6 {[%clk 0:04:45.5]}
10. b4 {[%clk 0:04:40.8]} 10... a5 {[%clk 0:04:43.4]} 11. a3 {[%clk 0:04:34.3]}
11... axb4 {[%clk 0:04:38.9]} 12. axb4 {[%clk 0:04:33.3]} 12... Bb7 {[%clk
0:04:36]} 13. O-O {[%clk 0:04:27.6]} 13... Rxa1 {[%clk 0:04:30.8]} 14. Qxa1
{[%clk 0:04:24.9]} 14... Qa8 {[%clk 0:04:28.5]} 15. Qb2 {[%clk 0:04:16.5]} 15...
bxc5 {[%clk 0:04:24.5]} 16. bxc5 {[%clk 0:04:13.9]} 16... Qb8 {[%clk 0:04:18.1]}
17. Rb1 {[%clk 0:04:10.7]} 17... Ba8 {[%clk 0:04:12.5]} 18. Qe2 {[%clk
0:04:01.1]} 18... Qd8 {[%clk 0:04:05.1]} 19. Bg3 {[%clk 0:03:56.4]} 19... Nh5
{[%clk 0:03:52.9]} 20. h3 {[%clk 0:03:34.3]} 20... Nxg3 {[%clk 0:03:51.3]} 21.
fxg3 {[%clk 0:03:33.4]} 21... Qc7 {[%clk 0:03:48.9]} 22. Kh2 {[%clk 0:03:30.1]}
22... Rb8 {[%clk 0:03:46.5]} 23. Rf1 {[%clk 0:03:27.5]} 23... e5 {[%clk
0:03:44.5]} 24. dxe5 {[%clk 0:03:20.6]} 24... Nxe5 {[%clk 0:03:43.1]} 25. Nxe5
{[%clk 0:03:18.8]} 25... Qxe5 {[%clk 0:03:41.7]} 26. Qf3 {[%clk 0:03:10.9]}
26... Bf6 {[%clk 0:03:39.6]} 27. Ne2 {[%clk 0:03:02.2]} 27... Rb3 {[%clk
0:03:35.1]} 28. Bb1 {[%clk 0:02:56.5]} 28... Rxe3 {[%clk 0:03:32.9]} 29. Qf2
{[%clk 0:02:37.7]} 29... Rxe2 {[%clk 0:03:30.5]} 0-1

[Event "Live Chess"]
[Site "Chess.com"]
[Date "2024.06.02"]
[Round "-"]
[White "RockTroll"]
[Black "StoreySniper"]
[Result "0-1"]
[WhiteElo "2177"]
[BlackElo "2500"]
[TimeControl "300"]
[EndTime "3:33:56 PDT"]
[Termination "StoreySniper won by resignation"]

1. e4 {[%clk 0:04:57.6]} 1... g6 {[%clk 0:04:59.1]} 2. d4 {[%clk 0:04:55.2]}
2... Bg7 {[%clk 0:04:58.7]} 3. c4 {[%clk 0:04:53.4]} 3... c5 {[%clk 0:04:58]} 4.
d5 {[%clk 0:04:51.3]} 4... d6 {[%clk 0:04:56.3]} 5. f3 {[%clk 0:04:49.6]} 5...
Nf6 {[%clk 0:04:54.1]} 6. Nc3 {[%clk 0:04:48.6]} 6... O-O {[%clk 0:04:50]} 7.
Nge2 {[%clk 0:04:47.6]} 7... e6 {[%clk 0:04:47.7]} 8. Ng3 {[%clk 0:04:46.8]}
8... exd5 {[%clk 0:04:45.8]} 9. cxd5 {[%clk 0:04:46.7]} 9... Re8 {[%clk
0:04:42.3]} 10. Be2 {[%clk 0:04:43.7]} 10... h5 {[%clk 0:04:41.3]} 11. O-O
{[%clk 0:04:42.3]} 11... h4 {[%clk 0:04:40.4]} 12. Nh1 {[%clk 0:04:41.7]} 12...
Nbd7 {[%clk 0:04:29.8]} 13. Nf2 {[%clk 0:04:39.6]} 13... Nf8 {[%clk 0:04:23.7]}
14. Bg5 {[%clk 0:04:33.7]} 14... h3 {[%clk 0:04:21.1]} 15. g3 {[%clk 0:04:26.9]}
15... N8h7 {[%clk 0:04:18.1]} 16. Be3 {[%clk 0:04:25]} 16... Bd7 {[%clk
0:04:08.6]} 17. f4 {[%clk 0:04:20.6]} 17... b5 {[%clk 0:04:00.9]} 18. e5 {[%clk
0:04:13.7]} 18... dxe5 {[%clk 0:03:50.8]} 19. fxe5 {[%clk 0:04:11.5]} 19... Rxe5
{[%clk 0:03:49.4]} 20. Bxc5 {[%clk 0:04:10]} 20... b4 {[%clk 0:03:40.3]} 21.
Bxb4 {[%clk 0:04:06.1]} 21... Qb6 {[%clk 0:03:33.4]} 22. Ba3 {[%clk 0:03:58.6]}
22... Rae8 {[%clk 0:03:28.2]} 23. Bc4 {[%clk 0:03:52]} 23... Ng4 {[%clk
0:03:19.5]} 24. Qf3 {[%clk 0:03:07.3]} 24... Ng5 {[%clk 0:03:11.8]} 25. Qf4
{[%clk 0:02:59.8]} 25... Rf5 {[%clk 0:02:48.7]} 26. Qd2 {[%clk 0:02:53.1]} 26...
Nf3+ {[%clk 0:02:43.1]} 0-1

[Event "Live Chess"]
[Site "Chess.com"]
[Date "2024.06.02"]
[Round "-"]
[White "Pandreq"]
[Black "NottheBishopSacrifice"]
[Result "0-1"]
[WhiteElo "1221"]
[BlackElo "2316"]
[TimeControl "300"]
[EndTime "3:34:11 PDT"]
[Termination "NottheBishopSacrifice won by checkmate"]

1. d4 {[%clk 0:04:57.6]} 1... d5 {[%clk 0:04:58.8]} 2. c4 {[%clk 0:04:56.6]}
2... e6 {[%clk 0:04:57.6]} 3. Nc3 {[%clk 0:04:55.9]} 3... Bb4 {[%clk 0:04:56.3]}
4. a3 {[%clk 0:04:55.6]} 4... Bxc3+ {[%clk 0:04:54.2]} 5. bxc3 {[%clk
0:04:55.5]} 5... dxc4 {[%clk 0:04:53.5]} 6. Qa4+ {[%clk 0:04:47.2]} 6... Nd7
{[%clk 0:04:48.3]} 7. e4 {[%clk 0:04:40.3]} 7... Nf6 {[%clk 0:04:47.3]} 8. e5
{[%clk 0:04:34.4]} 8... Nd5 {[%clk 0:04:45.9]} 9. Qxc4 {[%clk 0:04:32.3]} 9...
O-O {[%clk 0:04:44.3]} 10. Bd2 {[%clk 0:04:27.9]} 10... c5 {[%clk 0:04:42.9]}
11. Nf3 {[%clk 0:04:22.1]} 11... cxd4 {[%clk 0:04:41.3]} 12. cxd4 {[%clk
0:04:21.2]} 12... b5 {[%clk 0:04:40.2]} 13. Qxb5 {[%clk 0:04:07.3]} 13... Rb8
{[%clk 0:04:38.7]} 14. Qe2 {[%clk 0:04:01.8]} 14... Qb6 {[%clk 0:04:35.4]} 15.
g3 {[%clk 0:03:52.6]} 15... Qb2 {[%clk 0:04:33.4]} 16. Rd1 {[%clk 0:03:45.2]}
16... Qxa3 {[%clk 0:04:29.7]} 17. Bg2 {[%clk 0:03:32.8]} 17... Ba6 {[%clk
0:04:27.8]} 18. Qe4 {[%clk 0:03:22.5]} 18... Bd3 {[%clk 0:04:21.2]} 19. Qh4
{[%clk 0:03:10.1]} 19... h6 {[%clk 0:04:12.7]} 20. Bxh6 {[%clk 0:02:42.4]} 20...
gxh6 {[%clk 0:04:05.3]} 21. Qxh6 {[%clk 0:02:41.2]} 21... Qc3+ {[%clk
0:03:48.7]} 22. Nd2 {[%clk 0:02:36.6]} 22... Nxe5 {[%clk 0:03:40.2]} 23. dxe5
{[%clk 0:02:21.5]} 23... Qxe5+ {[%clk 0:03:32.6]} 24. Ne4 {[%clk 0:02:06.9]}
24... Bxe4 {[%clk 0:03:30.3]} 25. Bxe4 {[%clk 0:02:05.7]} 25... Qxe4+ {[%clk
0:03:29.1]} 26. Kd2 {[%clk 0:01:44.5]} 26... Rb2+ {[%clk 0:03:25.7]} 27. Kc1
{[%clk 0:01:39]} 27... Qc2# {[%clk 0:03:25]} 0-1